bitfinex/quotes_SOLUSD_20251006
["timestamp","ask_amount","ask_price","bid_price","bid_amount"]
[1759710832523,0.69,228.89,228.81,31.6]
[1759710832739,0.69,228.89,228.81,32.26]
[1759710833844,4.02232382,228.89,228.81,32.26]
[1759710834225,0.69,228.89,228.81,32.26]
[1759710834423,0.69,228.89,228.81,36.63038938]
[1759710834640,0.69,228.89,228.81,32.26]
[1759710834641,4.02232382,228.89,228.81,32.26]
[1759710834834,4.02232382,228.89,228.81,36.63038525]
[1759710835130,0.69,228.89,228.81,36.63038525]
[1759710835332,0.69,228.89,228.81,32.26]
[1759710835865,2.07616789,228.89,228.82,0.66]
[1759710836622,2.07616789,228.89,228.76,24.44194288]
[1759710836828,1.38616789,228.84,228.75,10.87647521]
[1759710837029,20.8,228.89,228.75,0.66]
[1759710837030,1.38616789,228.81,228.75,0.66]
[1759710837242,1.38616789,228.82,228.75,0.66]
[1759710837851,2.07616789,228.83,228.75,0.66]
[1759710838656,1.38616789,228.82,228.75,0.66]
[1759710839941,1.38616789,228.82,228.75,32.24]
[1759710840543,1.38616789,228.82,228.75,0.66]
[1759710840746,1.38616789,228.78,228.68,11.53647521]
[1759710841048,1.38616789,228.76,228.71,20.8]
[1759710841249,0.69,228.77,228.71,21.46]
[1759710841430,2.07616789,228.77,228.71,21.46]
[1759710842048,1.38616789,228.79,228.72,0.66]
[1759710842254,20.8,228.88,228.73,10.87647521]
[1759710842438,20.8,228.88,228.75,10.87647521]
[1759710842439,2.07616789,228.86,228.75,10.87647521]
[1759710842635,0.69,228.86,228.77,10.87647521]
[1759710842840,0.69,228.86,228.78,0.66]
[1759710843036,0.69,228.89,228.79,31.58]
[1759710843260,0.69,228.89,228.8,11.53647521]
[1759710843444,0.69,228.89,228.81,0.66]
[1759710843642,20.9,228.95,228.81,0.66]
[1759710843643,0.69,228.92,228.82,10.87647521]
[1759710843838,0.69,228.92,228.79,31.58]
[1759710843839,1.38616789,228.91,228.83,0.66]
[1759710844354,4.46786478,228.95,228.84,10.87647521]
[1759710844355,2.17616789,228.95,228.84,10.87647521]
[1759710844533,0.79,228.95,228.86,10.87647521]
[1759710844737,0.79,228.95,228.87,5.02929261]
[1759710845039,0.79,228.95,228.88,0.66]
[1759710845241,0.79,228.95,228.84,0.66]
[1759710845242,3.33021742,228.94,228.84,0.66]
[1759710845541,3.33021742,228.86,228.8,20.86]
[1759710845742,3.33021742,228.84,228.78,31.58]
[1759710846058,4.02021742,228.85,228.78,31.58]
[1759710846440,26.26374865,228.95,228.75,0.66]
[1759710846441,3.33021742,228.83,228.75,0.66]
[1759710846655,4.02021742,228.82,228.76,31.58]
[1759710846970,0.69,228.82,228.76,31.58]
[1759710847341,4.02021742,228.81,228.73,20.8]
[1759710847654,4.02021742,228.81,228.74,32.24]
[1759710847860,3.33021742,228.8,228.74,31.58]
[1759710848068,0.69,228.79,228.73,31.58]
[1759710848441,4.02021742,228.79,228.73,31.58]
[1759710848767,4.02021742,228.79,228.68,0.66]
[1759710848768,3.33021742,228.74,228.68,0.66]
[1759710849664,0.69,228.75,228.68,0.66]
[1759710849881,0.69,228.79,228.68,0.66]
[1759710850044,4.02021742,228.79,228.68,0.66]
[1759710850238,3.33021742,228.77,228.68,0.66]
[1759710850454,3.33021742,228.76,228.68,0.66]
[1759710850651,3.33021742,228.76,228.67,31.58]
[1759710850652,4.02021742,228.75,228.67,20.8]
[1759710850862,3.33021742,228.73,228.65,32.24]
[1759710851054,24.13021742,228.77,228.66,0.66]
[1759710851258,0.69,228.75,228.66,0.66]
[1759710851664,4.02021742,228.79,228.67,10.87647521]
[1759710851965,4.02021742,228.79,228.68,0.66]
[1759710852566,3.33021742,228.77,228.68,0.66]
[1759710852942,0.69,228.77,228.68,0.66]
[1759710853145,4.02021742,228.77,228.68,0.66]
[1759710853470,3.33021742,228.74,228.65,0.66]
[1759710853644,3.33021742,228.74,228.65,32.22]
[1759710853842,0.69,228.73,228.65,32.22]
[1759710854342,0.69,228.73,228.66,0.66]
[1759710855774,20.0,228.88,228.67,10.87647521]
[1759710856063,20.0,228.88,228.66,0.66]
[1759710856064,0.69,228.79,228.69,10.87647521]
[1759710856270,0.69,228.82,228.71,10.87647521]
[1759710856469,0.69,228.82,228.73,10.87647521]
[1759710856853,0.69,228.82,228.74,0.66]
[1759710857263,0.69,228.82,228.74,5.03170865]
[1759710857648,0.72,228.86,228.75,11.55647521]
[1759710857846,0.72,228.86,228.76,32.24]
[1759710858047,0.72,228.86,228.76,31.56]
[1759710858247,0.72,228.86,228.77,0.68]
[1759710858973,3.33021742,228.87,228.77,0.68]
[1759710858974,11.01964584,228.95,228.77,0.68]
[1759710859180,0.72,228.9,228.78,10.87647521]
[1759710859346,0.72,228.93,228.82,10.87647521]
[1759710859546,0.1,228.95,228.84,10.87647521]
[1759710859968,0.1,228.95,228.85,0.68]
[1759710860469,0.1,228.95,228.86,10.87647521]
[1759710860673,0.72,228.94,228.77,15.29912158]
[1759710860852,0.72,228.93,228.84,0.68]
[1759710861045,3.33021742,228.92,228.85,31.56]
[1759710861250,0.1,228.95,228.86,0.68]
[1759710861750,0.1,228.95,228.86,32.24]
[1759710861951,0.72,228.94,228.86,32.24]
[1759710862153,4.05021742,228.94,228.86,0.68]
[1759710863278,0.72,228.94,228.86,0.68]
[1759710863476,0.1,228.95,228.89,20.8]
[1759710863666,0.1,228.95,228.89,21.48]
[1759710863866,0.1,228.95,228.89,0.68]
[1759710865866,0.1,228.95,228.9,10.87647521]
[1759710866067,0.1,228.95,228.91,0.68]
[1759710866258,0.1,228.95,228.92,0.68]
[1759710866759,0.1,228.95,228.9,10.87647521]
[1759710866958,0.1,228.95,228.93,0.68]
[1759710867372,0.1,229.01,228.94,4.36795666]
[1759710867564,0.1,229.01,228.99,10.87647521]
[1759710867762,0.1,229.01,229.0,31.54]
[1759710867977,0.1,229.01,229.0,32.22]
[1759710868590,0.1,229.01,229.0,0.68]
[1759710868758,0.1,229.01,229.0,32.22]
[1759710869471,0.1,229.01,229.0,43.09647521]
[1759710871283,0.1,229.02,229.01,15.24309675]
[1759710871485,0.1,229.08,229.07,31.67647521]
[1759710871780,0.1,229.08,229.07,63.21647521]
[1759710871985,0.1,229.08,229.07,63.89647521]
[1759710874276,0.1,229.13,229.12,10.87647521]
[1759710874476,0.1,229.13,229.12,42.39647521]
[1759710874782,0.1,229.13,229.12,43.08647521]
[1759710875084,0.1,229.18,229.12,43.08647521]
[1759710875298,0.1,229.18,229.14,36.0406194]
[1759710875468,0.1,229.18,229.17,31.67647521]
[1759710875784,0.1,229.18,229.17,63.19647521]
[1759710875963,0.1,229.18,229.17,42.39647521]
[1759710877088,0.1,229.18,229.17,10.87647521]
[1759710877391,0.1,229.18,229.17,42.39647521]
[1759710877583,0.1,229.18,229.17,10.87647521]
[1759710877897,0.1,229.18,229.17,31.5]
[1759710878366,0.1,229.18,229.17,42.37647521]
[1759710878777,0.1,229.18,229.17,43.06647521]
[1759710879367,0.1,229.18,229.17,11.56647521]
[1759710879578,0.1,229.18,229.17,31.67647521]
[1759710879779,0.1,229.18,229.17,63.17647521]
[1759710880364,0.76,229.18,229.14,10.87647521]
[1759710880707,0.66,229.17,229.08,0.69]
[1759710880985,0.66,229.17,229.07,0.69]
[1759710881192,0.66,229.17,229.1,10.87647521]
[1759710881491,7.69417116,229.15,229.04,0.69]
[1759710881704,3.33021742,229.13,229.02,0.69]
[1759710881861,3.33021742,229.11,229.02,0.69]
[1759710882171,0.66,229.1,229.03,52.3]
[1759710882370,3.99021742,229.09,228.95,4.36395374]
[1759710882568,20.8,229.12,228.96,32.19]
[1759710882569,0.66,229.08,228.96,32.19]
[1759710882790,0.66,229.08,229.0,10.87647521]
[1759710883086,0.66,229.07,229.01,31.5]
[1759710883264,0.66,229.07,228.94,4.36794689]
[1759710883265,0.66,229.06,228.95,0.69]
[1759710883464,0.66,229.06,228.97,10.87647521]
[1759710883669,0.66,229.06,228.98,0.69]
[1759710884709,0.66,229.1,228.98,0.69]
[1759710885069,0.66,229.1,229.01,10.87647521]
[1759710885274,0.66,229.1,229.02,31.5]
[1759710885474,0.66,229.13,229.05,10.87647521]
[1759710886202,0.66,229.13,229.05,11.56647521]
[1759710886712,0.66,229.17,229.06,0.69]
[1759710887009,0.66,229.15,229.07,31.5]
[1759710887305,0.66,229.14,229.08,31.5]
[1759710889687,4.02021742,229.17,229.08,32.19]
[1759710889917,4.02021742,229.16,229.08,31.5]
[1759710890210,0.69,229.15,229.08,31.48]
[1759710891412,0.69,229.14,229.08,31.48]
[1759710891787,0.69,229.13,229.04,20.8]
[1759710891995,3.33021742,229.11,229.04,31.48]
[1759710892905,3.33021742,229.09,229.01,0.69]
[1759710893091,5.78712825,229.09,229.02,31.48]
[1759710893401,5.78712825,229.09,229.01,0.69]
[1759710893607,5.09712825,229.07,229.01,31.48]
[1759710894290,5.09712825,229.08,229.01,31.48]
[1759710894820,0.69,229.09,229.01,31.48]
[1759710894998,5.09712825,229.08,229.01,31.48]
[1759710896796,5.09712825,229.05,228.98,20.8]
[1759710897010,5.09712825,229.03,228.98,20.8]
[1759710897222,5.78712825,229.03,228.98,20.8]
[1759710897519,5.09712825,229.05,228.99,0.69]
[1759710897926,5.09712825,229.06,228.99,0.69]
[1759710898915,5.09712825,229.04,228.97,31.48]
[1759710899403,5.09712825,229.04,228.97,32.17]
[1759710900103,20.8,229.12,228.98,0.69]
[1759710900104,0.69,229.07,228.98,0.69]
[1759710900312,5.09712825,229.05,228.98,0.69]
[1759710900499,5.09712825,229.07,228.98,11.56647521]
[1759710900698,5.09712825,229.05,228.97,31.48]
[1759710901018,0.69,229.04,228.94,20.8]
[1759710901332,5.09712825,228.98,228.92,0.69]
[1759710901497,5.09712825,228.97,228.89,0.69]
[1759710901701,5.09712825,228.97,228.9,31.48]
[1759710902009,0.69,228.98,228.9,31.48]
[1759710902010,5.09712825,228.95,228.9,31.48]
[1759710902311,20.8,229.04,228.82,17.55203981]
[1759710902312,5.09712825,228.93,228.82,17.55203981]
[1759710902519,5.09712825,228.91,228.85,0.69]
[1759710902705,5.09712825,228.91,228.85,19.41]
[1759710902890,0.69,228.96,228.86,0.69]
[1759710903098,5.09712825,228.94,228.86,0.69]
[1759710903318,5.09712825,228.91,228.83,0.69]
[1759710903517,5.09712825,228.9,228.83,32.17]
[1759710903705,5.78712825,228.91,228.83,32.17]
[1759710904410,5.09712825,228.89,228.8,0.69]
[1759710904609,5.09712825,228.87,228.8,9.13]
[1759710904900,5.09712825,228.9,228.81,11.56647521]
[1759710905199,5.09712825,228.87,228.81,0.69]
[1759710905404,5.09712825,228.87,228.8,8.44]
[1759710905629,5.09712825,228.87,228.8,9.13]
[1759710906134,5.78712825,228.88,228.8,9.13]
[1759710906337,5.09712825,228.87,228.8,9.13]
[1759710906725,21.49,228.92,228.81,11.56647521]
[1759710906942,5.09712825,228.91,228.82,0.69]
[1759710907811,5.78712825,228.96,228.83,31.67647521]
[1759710908007,5.09712825,228.95,228.85,10.87647521]
[1759710908320,5.09712825,228.92,228.84,32.17]
[1759710908936,5.09712825,228.9,228.82,42.35647521]
[1759710909146,0.69,228.91,228.82,42.35647521]
[1759710909147,5.78712825,228.91,228.83,0.69]
[1759710910009,0.69,228.91,228.83,0.69]
[1759710910445,5.09712825,228.93,228.83,0.69]
[1759710910735,5.78712825,228.92,228.83,0.69]
[1759710910923,5.09712825,228.91,228.82,31.48]
[1759710911233,5.09712825,228.88,228.81,31.48]
[1759710911937,15.28859102,228.93,228.76,0.89]
[1759710911938,5.09712825,228.82,228.76,0.89]
[1759710912112,0.69,228.87,228.76,0.2]
[1759710912521,5.09712825,228.83,228.76,0.2]
[1759710913330,4.36968876,228.85,228.76,0.2]
[1759710913331,0.69,228.86,228.77,0.69]
[1759710913533,5.09712825,228.84,228.77,0.69]
[1759710914136,0.69,228.89,228.78,10.87647521]
[1759710914316,0.69,228.89,228.8,10.87647521]
[1759710914639,5.09712825,228.91,228.8,10.87647521]
[1759710914945,0.69,228.92,228.82,10.87647521]
[1759710915116,5.09712825,228.94,228.82,10.87647521]
[1759710915316,0.69,228.92,228.83,0.69]
[1759710915913,0.69,228.92,228.79,31.48]
[1759710915914,5.09712825,228.86,228.72,10.87647521]
[1759710916140,5.09712825,228.84,228.76,11.07647521]
[1759710916343,0.69,228.85,228.76,11.07647521]
[1759710916643,5.78712825,228.86,228.77,0.69]
[1759710916825,5.09712825,228.85,228.77,0.69]
[1759710917239,5.78712825,228.86,228.77,0.69]
[1759710917533,5.09712825,228.85,228.77,0.69]
[1759710917734,5.78712825,228.86,228.77,0.69]
[1759710919121,5.09712825,228.86,228.77,0.69]
[1759710919323,0.71,228.95,228.78,63.15647521]
[1759710919518,32.98857053,229.09,228.88,10.87647521]
[1759710919519,0.71,228.99,228.88,10.87647521]
[1759710919835,5.80712825,228.99,228.89,0.67]
[1759710920039,5.09712825,228.98,228.89,0.67]
[1759710920347,5.09712825,228.97,228.89,0.67]
[1759710920639,0.71,228.99,228.89,0.67]
[1759710920844,0.71,228.99,228.9,10.87647521]
[1759710921143,0.71,228.99,228.91,0.67]
[1759710921726,31.48,229.08,228.92,10.87647521]
[1759710921941,0.71,229.02,228.92,10.87647521]
[1759710922131,0.71,229.01,228.92,10.87647521]
[1759710922351,5.09712825,228.93,228.83,0.67]
[1759710922529,5.80712825,228.92,228.84,10.87647521]
[1759710922728,5.09712825,228.94,228.85,0.67]
[1759710923447,5.09712825,228.93,228.85,0.67]
[1759710923637,5.09712825,228.94,228.85,0.67]
[1759710923952,5.09712825,228.9,228.79,0.67]
[1759710924131,5.09712825,228.88,228.79,0.67]
[1759710924333,5.09712825,228.86,228.79,0.67]
[1759710924662,5.09712825,228.81,228.74,0.67]
[1759710924964,5.80712825,228.85,228.74,21.47]
[1759710925154,5.09712825,228.84,228.74,21.47]
[1759710925359,5.09712825,228.84,228.75,10.87647521]
[1759710926132,5.09712825,228.83,228.75,10.87647521]
[1759710926438,5.09712825,228.84,228.75,10.87647521]
[1759710926741,4.36910171,228.88,228.75,10.87647521]
[1759710927057,5.09712825,228.79,228.72,10.87647521]
[1759710927240,0.71,228.78,228.72,10.87647521]
[1759710927858,0.71,228.82,228.72,10.87647521]
[1759710928032,5.80712825,228.82,228.72,11.54647521]
[1759710928553,5.09712825,228.81,228.72,11.54647521]
[1759710928865,5.09712825,228.79,228.71,20.8]
[1759710929033,5.80712825,228.8,228.71,20.8]
[1759710929361,0.71,228.8,228.72,10.87647521]
[1759710929536,0.71,228.8,228.73,0.67]
[1759710929726,0.71,228.79,228.71,20.8]
[1759710929930,0.71,228.79,228.69,0.67]
[1759710929931,5.09712825,228.77,228.7,10.87647521]
[1759710930141,5.80712825,228.77,228.7,20.8]
[1759710930453,5.80712825,228.77,228.68,10.87647521]
[1759710932035,5.80712825,228.77,228.67,31.48]
[1759710932361,5.80712825,228.77,228.66,20.8]
[1759710932362,5.80712825,228.77,228.66,21.47]
[1759710933634,0.71,228.77,228.69,0.67]
[1759710934840,0.71,228.8,228.72,0.67]
[1759710935142,5.80712825,228.79,228.69,0.67]
[1759710935464,10.17797044,228.79,228.69,0.67]
[1759710935642,9.46797044,228.79,228.69,0.67]
[1759710935838,0.71,228.78,228.69,0.67]
[1759710936549,5.09712825,228.79,228.7,0.67]
[1759710936745,0.71,228.78,228.7,0.67]
[1759710936950,5.80712825,228.77,228.67,0.67]
[1759710938158,10.17833076,228.77,228.67,0.67]
[1759710939454,5.80712825,228.77,228.67,0.67]
[1759710939663,10.17833076,228.77,228.69,0.65]
[1759710940549,36.59712825,228.78,228.71,0.65]
[1759710940757,0.66,228.8,228.68,20.8]
[1759710940758,5.09712825,228.79,228.69,10.87647521]
[1759710940942,5.0306594,228.8,228.68,20.8]
[1759710940943,5.09712825,228.77,228.68,20.8]
[1759710941251,9.46833076,228.77,228.68,0.65]
[1759710941453,10.12833076,228.77,228.66,4.37330481]
[1759710941655,10.12833076,228.77,228.69,0.65]
[1759710942244,5.75712825,228.77,228.69,0.65]
[1759710942654,10.12833076,228.77,228.69,0.65]
[1759710942865,52.50480597,228.77,228.76,1e-08]
[1759710943162,4.37196694,228.73,228.63,0.65]
[1759710943369,5.09712825,228.66,228.61,0.65]
[1759710943749,5.75712825,228.66,228.61,0.65]
[1759710944273,5.75712825,228.66,228.59,20.8]
[1759710944485,0.66,228.66,228.58,0.65]
[1759710944779,0.66,228.66,228.57,15.45148871]
[1759710944780,5.09712825,228.67,228.59,0.65]
[1759710945142,5.03274775,228.69,228.59,0.65]
[1759710945346,5.09712825,228.67,228.59,0.65]
[1759710945557,0.66,228.69,228.59,5.02461274]
[1759710945762,5.09712825,228.68,228.59,4.37461274]
[1759710945964,5.09712825,228.68,228.6,0.65]
[1759710946164,5.09712825,228.67,228.6,0.65]
[1759710946366,5.09712825,228.66,228.6,0.65]
[1759710946565,5.09712825,228.67,228.6,0.65]
[1759710946767,5.09712825,228.66,228.6,0.65]
[1759710946966,0.66,228.66,228.57,0.2]
[1759710947268,5.09712825,228.62,228.57,0.2]
[1759710947448,0.72,228.61,228.57,0.2]
[1759710947654,0.72,228.6,228.57,0.2]
[1759710947969,0.72,228.59,228.57,0.2]
[1759710948149,5.09712825,228.6,228.57,0.2]
[1759710948343,5.09712825,228.61,228.57,0.2]
[1759710948962,5.09712825,228.62,228.57,0.2]
[1759710949163,0.5,228.61,228.57,0.2]
[1759710949672,5.59712825,228.61,228.57,0.2]
[1759710950047,6.31712825,228.61,228.57,0.2]
[1759710951060,1.22,228.61,228.57,0.2]
[1759710951373,6.31712825,228.61,228.57,0.2]
[1759710951952,5.81712825,228.6,228.57,0.2]
[1759710952872,5.09712825,228.58,228.57,0.2]
[1759710953083,4.0617015,228.58,228.57,0.2]
[1759710954580,0.5,228.61,228.57,0.2]
[1759710954754,0.5,228.61,228.58,0.66]
[1759710954954,10.08,228.7,228.58,0.66]
[1759710955271,3.3417015,228.65,228.58,0.66]
[1759710955474,3.3417015,228.66,228.58,0.66]
[1759710955774,3.3417015,228.67,228.58,0.66]
[1759710956663,4.0617015,228.68,228.58,5.03478272]
[1759710956865,3.3417015,228.75,228.58,5.03478272]
[1759710956866,10.87647521,228.76,228.59,32.33647521]
[1759710957063,3.3417015,228.69,228.6,0.66]
[1759710957469,4.0617015,228.7,228.6,0.66]
[1759710957679,20.8,228.72,228.61,10.87647521]
[1759710957680,3.3417015,228.72,228.61,10.87647521]
[1759710957974,3.3417015,228.72,228.59,20.8]
[1759710957975,0.72,228.77,228.63,10.87647521]
[1759710958273,3.3417015,228.75,228.64,0.66]
[1759710958477,0.72,228.77,228.65,10.87647521]
[1759710958649,3.3417015,228.76,228.66,5.03330534]
[1759710958858,3.3417015,228.76,228.67,0.66]
[1759710959059,3.3417015,228.74,228.67,0.66]
[1759710959265,3.3417015,228.72,228.64,0.66]
[1759710959476,0.72,228.85,228.7,20.8]
[1759710959683,0.72,228.84,228.71,11.53647521]
[1759710959856,0.72,228.83,228.72,0.66]
[1759710960259,0.72,228.83,228.68,0.66]
[1759710960477,24.1417015,228.79,228.64,0.66]
[1759710960660,0.72,228.78,228.64,0.66]
[1759710961175,0.72,228.78,228.65,20.8]
[1759710961176,52.3,228.77,228.65,20.8]
[1759710961380,0.72,228.76,228.66,0.66]
[1759710962572,20.8,228.72,228.62,0.66]
[1759710962886,0.72,228.71,228.62,0.66]
[1759710963565,0.72,228.71,228.59,10.87647521]
[1759710963769,0.72,228.7,228.59,10.87647521]
[1759710963969,0.72,228.7,228.58,0.66]
[1759710963970,0.72,228.69,228.58,0.66]
[1759710965184,3.3417015,228.68,228.57,0.2]
[1759710965384,20.8,228.66,228.57,0.2]
[1759710965563,0.72,228.65,228.57,0.2]
[1759710966674,0.72,228.68,228.58,0.66]
[1759710966870,10.92776132,228.78,228.58,0.66]
[1759710966871,0.72,228.71,228.61,20.8]
[1759710967078,0.72,228.71,228.62,0.66]
[1759710967871,0.72,228.76,228.63,10.87647521]
[1759710968073,0.72,228.75,228.63,0.66]
[1759710968381,24.1417015,228.74,228.62,20.8]
[1759710968590,4.0617015,228.73,228.6,0.66]
[1759710968776,24.1417015,228.7,228.57,0.86]
[1759710968975,20.8,228.66,228.57,0.2]
[1759710969284,0.72,228.65,228.57,0.2]
[1759710969680,0.72,228.7,228.58,0.66]
[1759710969858,0.72,228.7,228.59,10.87647521]
[1759710970058,0.72,228.7,228.6,0.66]
[1759710970459,20.8,228.72,228.6,0.66]
[1759710971068,0.72,228.71,228.6,5.03440715]
[1759710971290,3.3417015,228.75,228.62,10.87647521]
[1759710971503,0.72,228.74,228.63,0.66]
[1759710973072,0.72,228.74,228.63,5.03380873]
[1759710973291,0.72,228.74,228.64,0.66]
[1759710974782,3.3417015,228.73,228.6,0.66]
[1759710974967,4.0617015,228.72,228.61,10.87647521]
[1759710975499,24.8617015,228.75,228.62,0.66]
[1759710975684,21.52,228.75,228.62,0.66]
[1759710976496,0.72,228.79,228.67,10.87647521]
[1759710976706,0.72,228.82,228.71,10.87647521]
[1759710976913,0.72,228.85,228.73,10.87647521]
[1759710977211,21.52,228.85,228.75,10.87647521]
[1759710977366,0.72,228.85,228.75,10.87647521]
[1759710977570,0.72,228.89,228.76,32.32647521]
[1759710977870,0.72,228.89,228.78,10.87647521]
[1759710978503,0.72,228.89,228.79,0.65]
[1759710979102,20.8,228.9,228.79,5.02065037]
[1759710979302,4.0617015,228.92,228.8,21.45]
[1759710979683,4.0617015,228.92,228.76,10.92843283]
[1759710979684,3.3417015,228.86,228.74,0.65]
[1759710979879,3.3417015,228.84,228.74,0.65]
[1759710980081,0.72,228.83,228.74,0.65]
[1759710980402,20.8,228.89,228.75,20.8]
[1759710980403,0.72,228.86,228.75,20.8]
[1759710980577,0.72,228.86,228.76,0.65]
[1759710982015,0.72,228.92,228.81,10.87647521]
[1759710982224,0.72,228.92,228.81,11.52647521]
[1759710982407,4.36736087,228.98,228.79,10.87647521]
[1759710982408,3.3417015,228.9,228.79,10.87647521]
[1759710982613,4.0617015,228.89,228.79,10.87647521]
[1759710982784,3.3417015,228.88,228.79,10.87647521]
[1759710982985,3.3417015,228.88,228.78,0.65]
[1759710983298,0.72,228.87,228.78,0.65]
[1759710983712,0.72,228.89,228.78,0.65]
[1759710984219,0.72,228.89,228.78,5.02098169]
[1759710984424,0.72,228.89,228.78,0.65]
[1759710984594,0.72,228.88,228.78,0.65]
[1759710985485,0.72,228.88,228.78,5.02091181]
[1759710985711,4.0617015,228.88,228.78,0.65]
[1759710986025,4.0617015,228.88,228.72,10.87647521]
[1759710986026,20.8,228.85,228.72,10.87647521]
[1759710986200,3.3417015,228.81,228.72,10.87647521]
[1759710986391,0.72,228.81,228.72,10.87647521]
[1759710986592,4.0617015,228.81,228.71,0.65]
[1759710986817,3.3417015,228.8,228.71,0.65]
[1759710987704,0.72,228.81,228.71,0.65]
[1759710987908,4.0617015,228.81,228.71,0.65]
[1759710988320,0.72,228.86,228.72,10.87647521]
[1759710988500,0.72,228.86,228.74,10.87647521]
[1759710988996,4.0617015,228.86,228.75,0.65]
[1759710990092,3.3417015,228.83,228.73,10.87647521]
[1759710990287,0.72,228.82,228.73,10.87647521]
[1759710990909,0.72,228.82,228.74,0.65]
[1759710991415,10.92096504,228.92,228.75,20.8]
[1759710991598,10.87647521,228.93,228.71,10.87647521]
[1759710991599,3.3417015,228.83,228.71,0.65]
[1759710991802,0.72,228.82,228.72,10.87647521]
[1759710992011,0.72,228.82,228.74,10.87647521]
[1759710992594,20.8,228.87,228.69,32.23]
[1759710992595,3.3417015,228.8,228.69,32.23]
[1759710992800,3.3417015,228.8,228.66,13.12364662]
[1759710992801,3.3417015,228.75,228.66,10.87647521]
[1759710993598,4.0617015,228.74,228.65,0.65]
[1759710993902,0.72,228.74,228.65,0.65]
[1759710994619,0.72,228.78,228.66,10.87647521]
[1759710994823,4.0617015,228.82,228.7,10.87647521]
[1759710995021,4.0617015,228.82,228.71,0.65]
[1759710995327,3.3417015,228.81,228.71,0.65]
[1759710995510,4.0617015,228.82,228.71,0.65]
[1759710996018,3.3417015,228.81,228.71,0.65]
[1759710996429,4.0617015,228.82,228.71,0.65]
[1759710996810,0.72,228.82,228.72,10.87647521]
[1759710997118,10.92155263,228.91,228.74,10.87647521]
[1759710997119,0.65,228.85,228.74,10.87647521]
[1759710997331,0.65,228.85,228.76,10.87647521]
[1759710997648,10.91993948,228.94,228.76,10.87647521]
[1759710997649,0.65,228.89,228.78,10.87647521]
[1759710997816,0.65,228.89,228.8,10.87647521]
[1759710998222,0.65,228.92,228.81,0.72]
[1759710998422,0.65,228.92,228.83,10.87647521]
[1759710998620,0.65,228.95,228.84,0.72]
[1759710998834,3.9917015,228.95,228.84,0.72]
[1759710999039,3.3417015,228.94,228.84,0.72]
[1759710999348,21.45,228.95,228.85,10.87647521]
[1759710999349,0.65,228.95,228.85,10.87647521]
[1759710999553,0.65,228.95,228.87,10.87647521]
[1759710999724,24.7917015,228.98,228.87,10.87647521]
[1759710999920,20.8,228.97,228.87,10.87647521]
[1759711000240,3.9917015,228.98,228.87,15.24565811]
[1759711000544,3.9917015,228.98,228.79,31.6]
[1759711000545,3.9917015,228.97,228.85,0.72]
[1759711000721,3.3417015,228.96,228.85,0.72]
[1759711001124,3.9917015,228.97,228.85,0.72]
[1759711001326,0.65,228.97,228.85,5.08967146]
[1759711001741,0.65,228.96,228.85,0.72]
[1759711001940,0.65,228.96,228.85,5.08963234]
[1759711003434,0.65,228.96,228.85,4.36963234]
[1759711003622,0.65,228.96,228.87,10.87647521]